[Event "Titled Tuesday Blitz June 8 2021"]
[White "Terry, Renato"]
[Black "Costachi, Mihnea"]
[WhiteFideId "3803457"]
[BlackFideId "1217518"]
[WhiteElo "2581"]
[BlackElo "2479"]
[Result "1-0"]
[Round "06"]
[TimeControl "180+1"]
[Date "2021.06.08"]
[WhiteClock "0:00:33"]
[BlackClock "0:02:05"]

1. d4 {[%clk 0:03:00]}  Nf6 {[%clk 0:02:59]} 2. Nf3 {[%clk 0:03:01]}  d5 {[%clk 0:02:59]} 3. c4 {[%clk 0:03:01]}  c6 {[%clk 0:02:59]} 4. Nc3 {[%clk 0:03:00]}  a6 {[%clk 0:02:59]} 5. c5 {[%clk 0:02:58]}  g6 {[%clk 0:02:58]} 6. Bf4 {[%clk 0:02:57]}  Bg7 {[%clk 0:02:59]} 7. h3 {[%clk 0:02:58]}  O-O {[%clk 0:03:00]} 8. e3 {[%clk 0:02:58]}  Bf5 {[%clk 0:03:00]} 9. g4 {[%clk 0:02:43]}  Be4 {[%clk 0:02:58]} 10. Bg2 {[%clk 0:02:23]}  Nbd7 {[%clk 0:02:56]} 11. O-O {[%clk 0:02:22]}  b5 {[%clk 0:02:49]} 12. Bh2 {[%clk 0:01:58]}  a5 {[%clk 0:02:43]} 13. g5 {[%clk 0:01:58]}  Bxf3 {[%clk 0:02:42]} 14. Qxf3 {[%clk 0:01:52]}  Ne8 {[%clk 0:02:39]} 15. h4 {[%clk 0:01:30]}  e5 {[%clk 0:02:39]} 16. Rad1 {[%clk 0:01:30]}  e4 {[%clk 0:02:36]} 17. Qh3 {[%clk 0:01:27]}  f6 {[%clk 0:02:35]} 18. Qe6+ {[%clk 0:01:25]}  Kh8 {[%clk 0:02:34]} 19. Qxc6 {[%clk 0:01:25]}  fxg5 {[%clk 0:02:32]} 20. Qxd5 {[%clk 0:01:10]}  gxh4 {[%clk 0:02:29]} 21. Nxe4 {[%clk 0:00:58]}  Qe7 {[%clk 0:02:22]} 22. Qxa8 {[%clk 0:00:56]}  h3 {[%clk 0:02:21]} 23. Bh1 {[%clk 0:00:43]}  Nef6 {[%clk 0:02:19]} 24. Qc6 {[%clk 0:00:39]}  Nxe4 {[%clk 0:02:18]} 25. Qxe4 {[%clk 0:00:35]}  Qg5+ {[%clk 0:02:18]} 26. Bg3 {[%clk 0:00:35]}  Nf6 {[%clk 0:02:16]} 27. Qf4 {[%clk 0:00:35]}  Qh5 {[%clk 0:02:16]} 28. Bf3 {[%clk 0:00:36]}  h2+ {[%clk 0:02:15]} 29. Kg2 {[%clk 0:00:34]}  g5 {[%clk 0:02:09]} 30. Bxh5 {[%clk 0:00:34]}  gxf4 {[%clk 0:02:09]} 31. Bxf4 {[%clk 0:00:34]}  Nxh5 {[%clk 0:02:09]} 32. Bxh2 {[%clk 0:00:35]}  Bf6 {[%clk 0:02:05]} 33. c6 {[%clk 0:00:34]}  Rg8+ {[%clk 0:02:06]} 34. Kh1 {[%clk 0:00:34]}  Rg4 {[%clk 0:02:04]} 35. c7 {[%clk 0:00:34]}  Rg8 {[%clk 0:02:05]} 36. d5 {[%clk 0:00:33]} 1-0


[Site "https://www.chess.com"]

[Event "Titled Tuesday Blitz June 8 2021"]
[White "Abdusattorov, Nodirbek"]
[Black "Narayanan.S.L"]
[WhiteFideId "14204118"]
[BlackFideId "5058422"]
[WhiteElo "2662"]
[BlackElo "2617"]
[Result "1-0"]
[Round "07"]
[TimeControl "180+1"]
[Date "2021.06.08"]
[WhiteClock "0:00:35"]
[BlackClock "0:00:09"]

1. e4 {[%clk 0:03:00]}  c5 {[%clk 0:02:59]} 2. Nf3 {[%clk 0:03:00]}  d6 {[%clk 0:03:00]} 3. Bb5+ {[%clk 0:02:59]}  Nd7 {[%clk 0:02:59]} 4. O-O {[%clk 0:02:59]}  a6 {[%clk 0:02:59]} 5. Bd3 {[%clk 0:02:58]}  Ngf6 {[%clk 0:02:58]} 6. Re1 {[%clk 0:02:58]}  e5 {[%clk 0:02:54]} 7. c3 {[%clk 0:02:56]}  Be7 {[%clk 0:02:54]} 8. Bc2 {[%clk 0:02:56]}  O-O {[%clk 0:02:55]} 9. d4 {[%clk 0:02:57]}  b6 {[%clk 0:02:53]} 10. d5 {[%clk 0:02:53]}  Ne8 {[%clk 0:02:48]} 11. c4 {[%clk 0:02:50]}  g6 {[%clk 0:02:48]} 12. Nc3 {[%clk 0:02:50]}  Ng7 {[%clk 0:02:49]} 13. Nd2 {[%clk 0:02:42]}  f5 {[%clk 0:02:47]} 14. exf5 {[%clk 0:02:42]}  gxf5 {[%clk 0:02:47]} 15. Nf1 {[%clk 0:02:42]}  Nf6 {[%clk 0:02:45]} 16. f4 {[%clk 0:02:41]}  e4 {[%clk 0:02:45]} 17. Ne3 {[%clk 0:02:40]}  Bd7 {[%clk 0:02:42]} 18. Bd2 {[%clk 0:02:37]}  b5 {[%clk 0:02:42]} 19. b3 {[%clk 0:02:35]}  Qe8 {[%clk 0:02:36]} 20. Rf1 {[%clk 0:02:34]}  Qg6 {[%clk 0:02:36]} 21. Ne2 {[%clk 0:02:29]}  h5 {[%clk 0:02:35]} 22. Kh1 {[%clk 0:02:20]}  b4 {[%clk 0:02:32]} 23. Ng1 {[%clk 0:02:07]}  a5 {[%clk 0:02:30]} 24. a3 {[%clk 0:02:01]}  Ng4 {[%clk 0:02:29]} 25. Nh3 {[%clk 0:02:01]}  Bf6 {[%clk 0:02:04]} 26. Ra2 {[%clk 0:02:00]}  Rfb8 {[%clk 0:02:04]} 27. Ng5 {[%clk 0:01:54]}  Bd4 {[%clk 0:00:46]} 28. Qe2 {[%clk 0:01:51]}  Re8 {[%clk 0:00:43]} 29. Bd1 {[%clk 0:01:40]}  Bf6 {[%clk 0:00:39]} 30. h3 {[%clk 0:01:39]}  Nh6 {[%clk 0:00:38]} 31. Qe1 {[%clk 0:01:32]}  Nf7 {[%clk 0:00:38]} 32. h4 {[%clk 0:01:30]}  Nh6 {[%clk 0:00:38]} 33. Bc1 {[%clk 0:01:28]}  Ng4 {[%clk 0:00:38]} 34. Bxg4 {[%clk 0:01:28]}  hxg4 {[%clk 0:00:37]} 35. Bb2 {[%clk 0:01:26]}  Bxb2 {[%clk 0:00:30]} 36. Rxb2 {[%clk 0:01:27]}  bxa3 {[%clk 0:00:31]} 37. Ra2 {[%clk 0:01:26]}  a4 {[%clk 0:00:31]} 38. Rxa3 {[%clk 0:01:19]}  axb3 {[%clk 0:00:31]} 39. Rxb3 {[%clk 0:01:19]}  Reb8 {[%clk 0:00:31]} 40. Rxb8+ {[%clk 0:01:13]}  Rxb8 {[%clk 0:00:32]} 41. Qa1 {[%clk 0:01:14]}  Nh5 {[%clk 0:00:31]} 42. Rb1 {[%clk 0:01:12]}  Rxb1+ {[%clk 0:00:28]} 43. Qxb1 {[%clk 0:01:12]}  Qe8 {[%clk 0:00:27]} 44. Qb6 {[%clk 0:01:09]}  Qe7 {[%clk 0:00:20]} 45. Qc7 {[%clk 0:01:06]}  Nxf4 {[%clk 0:00:20]} 46. Nxf5 {[%clk 0:01:02]}  Qe8 {[%clk 0:00:18]} 47. Nxd6 {[%clk 0:00:37]}  Qe7 {[%clk 0:00:18]} 48. Nf5 {[%clk 0:00:36]}  Qf6 {[%clk 0:00:09]} 49. Qxd7 {[%clk 0:00:35]} 1-0


[Site "https://www.chess.com"]

[Event "Titled Tuesday Blitz June 8 2021"]
[White "Aditya Mittal"]
[Black "Manukyan, Sargis A."]
[WhiteFideId "35042025"]
[BlackFideId "13303970"]
[WhiteElo "2171"]
[BlackElo "2187"]
[Result "1-0"]
[Round "07"]
[TimeControl "180+1"]
[Date "2021.06.08"]
[WhiteClock "0:00:05"]
[BlackClock "0:00:01"]

1. Nf3 {[%clk 0:03:00]}  Nf6 {[%clk 0:02:59]} 2. g3 {[%clk 0:03:01]}  b5 {[%clk 0:02:59]} 3. Bg2 {[%clk 0:02:58]}  Bb7 {[%clk 0:02:59]} 4. O-O {[%clk 0:02:59]}  e6 {[%clk 0:02:59]} 5. b3 {[%clk 0:02:55]}  c5 {[%clk 0:02:59]} 6. Bb2 {[%clk 0:02:55]}  Be7 {[%clk 0:02:59]} 7. d4 {[%clk 0:02:55]}  d5 {[%clk 0:02:56]} 8. a4 {[%clk 0:02:52]}  b4 {[%clk 0:02:54]} 9. Nbd2 {[%clk 0:02:48]}  Nbd7 {[%clk 0:02:53]} 10. e3 {[%clk 0:02:43]}  O-O {[%clk 0:02:53]} 11. Qe2 {[%clk 0:02:41]}  a5 {[%clk 0:02:49]} 12. Rfd1 {[%clk 0:02:40]}  Ba6 {[%clk 0:02:42]} 13. Qe1 {[%clk 0:02:40]}  Rc8 {[%clk 0:02:42]} 14. c4 {[%clk 0:02:36]}  bxc3 {[%clk 0:02:07]} 15. Bxc3 {[%clk 0:02:36]}  cxd4 {[%clk 0:02:00]} 16. Bxd4 {[%clk 0:02:37]}  Bb4 {[%clk 0:02:00]} 17. Bf1 {[%clk 0:02:32]}  Bxf1 {[%clk 0:01:48]} 18. Qxf1 {[%clk 0:02:31]}  Nc5 {[%clk 0:01:41]} 19. Rac1 {[%clk 0:02:16]}  Nfe4 {[%clk 0:01:35]} 20. Nxe4 {[%clk 0:02:04]}  Nxe4 {[%clk 0:01:29]} 21. Ne5 {[%clk 0:01:34]}  Qg5 {[%clk 0:01:06]} 22. Rxc8 {[%clk 0:01:15]}  Rxc8 {[%clk 0:01:05]} 23. Rc1 {[%clk 0:01:16]}  Rf8 {[%clk 0:01:00]} 24. Qa6 {[%clk 0:00:57]}  Qf5 {[%clk 0:00:55]} 25. Qe2 {[%clk 0:00:38]}  h5 {[%clk 0:00:54]} 26. Nd3 {[%clk 0:00:18]}  Bd6 {[%clk 0:00:29]} 27. h4 {[%clk 0:00:18]}  Rb8 {[%clk 0:00:26]} 28. Rb1 {[%clk 0:00:13]}  Nxf2 {[%clk 0:00:17]} 29. Qxf2 {[%clk 0:00:14]}  Qxd3 {[%clk 0:00:17]} 30. Rf1 {[%clk 0:00:15]}  Qg6 {[%clk 0:00:16]} 31. Kg2 {[%clk 0:00:03]}  Rxb3 {[%clk 0:00:16]} 32. Rc1 {[%clk 0:00:03]}  e5 {[%clk 0:00:13]} 33. Bc5 {[%clk 0:00:03]}  Bb8 {[%clk 0:00:09]} 34. Be7 {[%clk 0:00:03]}  d4 {[%clk 0:00:08]} 35. Rc8+ {[%clk 0:00:03]}  Kh7 {[%clk 0:00:08]} 36. Bg5 {[%clk 0:00:04]}  f6 {[%clk 0:00:09]} 37. exd4 {[%clk 0:00:03]}  fxg5 {[%clk 0:00:08]} 38. Qf8 {[%clk 0:00:03]}  Qc2+ {[%clk 0:00:07]} 39. Rxc2 {[%clk 0:00:02]}  Bd6 {[%clk 0:00:04]} 40. Qf5+ {[%clk 0:00:03]}  g6 {[%clk 0:00:03]} 41. Qxg5 {[%clk 0:00:04]}  exd4 {[%clk 0:00:03]} 42. Qd5 {[%clk 0:00:04]}  Rb6 {[%clk 0:00:01]} 43. Qf7+ {[%clk 0:00:04]}  Kh6 {[%clk 0:00:02]} 44. Re2 {[%clk 0:00:05]}  d3 {[%clk 0:00:03]} 45. Re6 {[%clk 0:00:05]}  Rb2+ {[%clk 0:00:03]} 46. Kh3 {[%clk 0:00:05]}  Bxg3 {[%clk 0:00:02]} 47. Kxg3 {[%clk 0:00:05]}  d2 {[%clk 0:00:01]} 48. Qxg6# {[%clk 0:00:05]} 1-0


[Site "https://www.chess.com"]

[Event "Titled Tuesday Blitz June 8 2021"]
[White "Alavkin, Arseny"]
[Black "Toncheva, Nadya"]
[WhiteFideId "4120612"]
[BlackFideId "2924056"]
[WhiteElo "2401"]
[BlackElo "1920"]
[Result "1-0"]
[Round "07"]
[TimeControl "180+1"]
[Date "2021.06.08"]
[WhiteClock "0:00:48"]
[BlackClock "0:00:06"]

1. e4 {[%clk 0:02:56]}  c5 {[%clk 0:02:59]} 2. Nc3 {[%clk 0:02:55]}  Nc6 {[%clk 0:02:59]} 3. Nge2 {[%clk 0:02:56]}  g6 {[%clk 0:02:58]} 4. d4 {[%clk 0:02:56]}  cxd4 {[%clk 0:02:58]} 5. Nxd4 {[%clk 0:02:57]}  Bg7 {[%clk 0:02:59]} 6. Be3 {[%clk 0:02:58]}  Nf6 {[%clk 0:02:59]} 7. Bc4 {[%clk 0:02:58]}  O-O {[%clk 0:02:59]} 8. Bb3 {[%clk 0:02:54]}  d6 {[%clk 0:02:58]} 9. f3 {[%clk 0:02:53]}  Bd7 {[%clk 0:02:58]} 10. Qd2 {[%clk 0:02:52]}  Rc8 {[%clk 0:02:58]} 11. O-O-O {[%clk 0:02:52]}  Na5 {[%clk 0:02:58]} 12. h4 {[%clk 0:02:52]}  h5 {[%clk 0:02:57]} 13. Kb1 {[%clk 0:02:51]}  Nc4 {[%clk 0:02:56]} 14. Bxc4 {[%clk 0:02:52]}  Rxc4 {[%clk 0:02:57]} 15. Nce2 {[%clk 0:02:38]}  b5 {[%clk 0:02:55]} 16. Bh6 {[%clk 0:02:37]}  a5 {[%clk 0:02:27]} 17. Bxg7 {[%clk 0:02:36]}  Kxg7 {[%clk 0:02:28]} 18. Qg5 {[%clk 0:02:21]}  Rc5 {[%clk 0:02:22]} 19. Qe3 {[%clk 0:02:15]}  Qc7 {[%clk 0:02:17]} 20. Rd2 {[%clk 0:02:04]}  Rc8 {[%clk 0:02:08]} 21. Rc1 {[%clk 0:02:03]}  a4 {[%clk 0:01:53]} 22. c3 {[%clk 0:01:49]}  b4 {[%clk 0:01:46]} 23. Rdc2 {[%clk 0:01:46]}  e5 {[%clk 0:01:34]} 24. Nf5+ {[%clk 0:01:38]}  Bxf5 {[%clk 0:01:24]} 25. exf5 {[%clk 0:01:38]}  Nd5 {[%clk 0:01:21]} 26. Qd2 {[%clk 0:01:20]}  bxc3 {[%clk 0:01:19]} 27. Nxc3 {[%clk 0:01:21]}  Nb4 {[%clk 0:01:16]} 28. f6+ {[%clk 0:01:20]}  Kh7 {[%clk 0:01:08]} 29. g4 {[%clk 0:01:17]}  Nxc2 {[%clk 0:01:06]} 30. Rxc2 {[%clk 0:01:17]}  Qd8 {[%clk 0:00:55]} 31. gxh5 {[%clk 0:01:00]}  Qxf6 {[%clk 0:00:54]} 32. Ne4 {[%clk 0:01:01]}  Qxh4 {[%clk 0:00:33]} 33. hxg6+ {[%clk 0:01:00]}  fxg6 {[%clk 0:00:32]} 34. Nxc5 {[%clk 0:01:00]}  Rxc5 {[%clk 0:00:25]} 35. Rxc5 {[%clk 0:00:59]}  dxc5 {[%clk 0:00:25]} 36. Qd7+ {[%clk 0:00:59]}  Kh6 {[%clk 0:00:24]} 37. Qd2+ {[%clk 0:00:58]}  Kh7 {[%clk 0:00:23]} 38. Qe3 {[%clk 0:00:58]}  Qh1+ {[%clk 0:00:21]} 39. Kc2 {[%clk 0:00:58]}  Qf1 {[%clk 0:00:17]} 40. Qxc5 {[%clk 0:00:50]}  Qxf3 {[%clk 0:00:17]} 41. Qa7+ {[%clk 0:00:48]}  Kh6 {[%clk 0:00:16]} 42. Qxa4 {[%clk 0:00:49]}  Qe2+ {[%clk 0:00:16]} 43. Kb3 {[%clk 0:00:46]}  Qd3+ {[%clk 0:00:15]} 44. Kb4 {[%clk 0:00:47]}  Qd4+ {[%clk 0:00:15]} 45. Ka3 {[%clk 0:00:47]}  Qxa4+ {[%clk 0:00:13]} 46. Kxa4 {[%clk 0:00:47]}  g5 {[%clk 0:00:14]} 47. b4 {[%clk 0:00:46]}  g4 {[%clk 0:00:14]} 48. b5 {[%clk 0:00:46]}  g3 {[%clk 0:00:15]} 49. b6 {[%clk 0:00:47]}  g2 {[%clk 0:00:15]} 50. b7 {[%clk 0:00:48]}  g1=Q {[%clk 0:00:16]} 51. b8=Q {[%clk 0:00:49]}  Qd1+ {[%clk 0:00:15]} 52. Qb3 {[%clk 0:00:47]}  Qd4+ {[%clk 0:00:13]} 53. Kb5 {[%clk 0:00:46]}  Kg6 {[%clk 0:00:11]} 54. a4 {[%clk 0:00:45]}  Kf6 {[%clk 0:00:11]} 55. Qf3+ {[%clk 0:00:44]}  Ke6 {[%clk 0:00:10]} 56. a5 {[%clk 0:00:45]}  Qd7+ {[%clk 0:00:08]} 57. Qc6+ {[%clk 0:00:44]}  Qxc6+ {[%clk 0:00:04]} 58. Kxc6 {[%clk 0:00:45]}  e4 {[%clk 0:00:05]} 59. a6 {[%clk 0:00:46]}  e3 {[%clk 0:00:05]} 60. a7 {[%clk 0:00:47]}  e2 {[%clk 0:00:05]} 61. a8=Q {[%clk 0:00:48]}  e1=Q {[%clk 0:00:06]} 62. Qe8+ {[%clk 0:00:48]} 1-0


[Site "https://www.chess.com"]

[Event "Titled Tuesday Blitz June 8 2021"]
[White "Andreikin, Dmitry"]
[Black "Drygalov, Sergey"]
[WhiteFideId "4158814"]
[BlackFideId "24171743"]
[WhiteElo "2782"]
[BlackElo "2514"]
[Result "1-0"]
[Round "07"]
[TimeControl "180+1"]
[Date "2021.06.08"]
[WhiteClock "0:00:28"]
[BlackClock "0:00:03"]

1. e4 {[%clk 0:03:00]}  c5 {[%clk 0:02:58]} 2. Nf3 {[%clk 0:03:00]}  d6 {[%clk 0:02:58]} 3. d4 {[%clk 0:02:59]}  cxd4 {[%clk 0:02:58]} 4. Nxd4 {[%clk 0:03:00]}  Nf6 {[%clk 0:02:58]} 5. Nc3 {[%clk 0:03:01]}  a6 {[%clk 0:02:58]} 6. a4 {[%clk 0:02:58]}  Nc6 {[%clk 0:02:57]} 7. h3 {[%clk 0:02:56]}  e5 {[%clk 0:02:57]} 8. Nf3 {[%clk 0:02:55]}  Be7 {[%clk 0:02:55]} 9. Bg5 {[%clk 0:02:53]}  Be6 {[%clk 0:02:54]} 10. Bxf6 {[%clk 0:02:51]}  Bxf6 {[%clk 0:02:54]} 11. Nd5 {[%clk 0:02:52]}  Bxd5 {[%clk 0:02:37]} 12. Qxd5 {[%clk 0:02:49]}  O-O {[%clk 0:02:37]} 13. c3 {[%clk 0:02:32]}  Qb6 {[%clk 0:02:28]} 14. Qa2 {[%clk 0:02:30]}  d5 {[%clk 0:02:18]} 15. a5 {[%clk 0:02:23]}  Qc7 {[%clk 0:01:37]} 16. Qxd5 {[%clk 0:02:22]}  Rad8 {[%clk 0:01:37]} 17. Qc4 {[%clk 0:02:18]}  Rd7 {[%clk 0:00:49]} 18. Be2 {[%clk 0:02:13]}  Bd8 {[%clk 0:00:39]} 19. b4 {[%clk 0:02:06]}  g6 {[%clk 0:00:32]} 20. O-O {[%clk 0:02:05]}  Kg7 {[%clk 0:00:32]} 21. Rfd1 {[%clk 0:02:03]}  Be7 {[%clk 0:00:28]} 22. Rd5 {[%clk 0:01:57]}  Rfd8 {[%clk 0:00:27]} 23. Rad1 {[%clk 0:01:55]}  Bf6 {[%clk 0:00:24]} 24. Ne1 {[%clk 0:01:42]}  Qc8 {[%clk 0:00:20]} 25. Nc2 {[%clk 0:01:34]}  Rc7 {[%clk 0:00:20]} 26. Bg4 {[%clk 0:01:06]}  Qb8 {[%clk 0:00:17]} 27. Rd7 {[%clk 0:00:57]}  Rdxd7 {[%clk 0:00:12]} 28. Rxd7 {[%clk 0:00:58]}  Rxd7 {[%clk 0:00:13]} 29. Bxd7 {[%clk 0:00:58]}  Ne7 {[%clk 0:00:13]} 30. Ne3 {[%clk 0:00:50]}  Qd6 {[%clk 0:00:10]} 31. Bc8 {[%clk 0:00:44]}  Bg5 {[%clk 0:00:06]} 32. Nd5 {[%clk 0:00:35]}  Nxd5 {[%clk 0:00:06]} 33. exd5 {[%clk 0:00:36]}  b6 {[%clk 0:00:04]} 34. Qc6 {[%clk 0:00:29]}  Qxc6 {[%clk 0:00:03]} 35. dxc6 {[%clk 0:00:30]}  bxa5 {[%clk 0:00:03]} 36. c7 {[%clk 0:00:28]} 1-0


[Site "https://www.chess.com"]

[Event "Titled Tuesday Blitz June 8 2021"]
[White "Bacrot, Etienne"]
[Black "Vyatkin, Dmitry"]
[WhiteFideId "605506"]
[BlackFideId "4171900"]
[WhiteElo "2673"]
[BlackElo "2279"]
[Result "1-0"]
[Round "07"]
[TimeControl "180+1"]
[Date "2021.06.08"]
[WhiteClock "0:00:05"]
[BlackClock "0:00:03"]

1. e4 {[%clk 0:03:00]}  e6 {[%clk 0:02:59]} 2. Nf3 {[%clk 0:03:00]}  d5 {[%clk 0:02:59]} 3. exd5 {[%clk 0:03:00]}  exd5 {[%clk 0:03:00]} 4. d4 {[%clk 0:03:01]}  Nf6 {[%clk 0:03:00]} 5. Bd3 {[%clk 0:03:01]}  Be7 {[%clk 0:03:00]} 6. O-O {[%clk 0:02:58]}  O-O {[%clk 0:03:00]} 7. Re1 {[%clk 0:02:56]}  Bg4 {[%clk 0:02:58]} 8. Nbd2 {[%clk 0:02:53]}  Nbd7 {[%clk 0:02:54]} 9. Nf1 {[%clk 0:02:48]}  c5 {[%clk 0:02:53]} 10. c3 {[%clk 0:02:41]}  cxd4 {[%clk 0:02:39]} 11. cxd4 {[%clk 0:02:40]}  Bb4 {[%clk 0:02:40]} 12. Re3 {[%clk 0:02:35]}  Rc8 {[%clk 0:02:29]} 13. Ng3 {[%clk 0:02:19]}  Re8 {[%clk 0:02:18]} 14. h3 {[%clk 0:02:15]}  Be6 {[%clk 0:02:08]} 15. Ne5 {[%clk 0:01:41]}  Nxe5 {[%clk 0:01:53]} 16. dxe5 {[%clk 0:01:31]}  Nd7 {[%clk 0:01:53]} 17. a3 {[%clk 0:00:59]}  Ba5 {[%clk 0:01:51]} 18. Re2 {[%clk 0:00:58]}  f6 {[%clk 0:01:48]} 19. exf6 {[%clk 0:00:48]}  Nxf6 {[%clk 0:01:47]} 20. Bg5 {[%clk 0:00:42]}  h6 {[%clk 0:01:42]} 21. Bf4 {[%clk 0:00:34]}  Qd7 {[%clk 0:01:21]} 22. Be5 {[%clk 0:00:29]}  Rf8 {[%clk 0:01:21]} 23. b4 {[%clk 0:00:17]}  Bb6 {[%clk 0:01:21]} 24. Qd2 {[%clk 0:00:17]}  Rce8 {[%clk 0:01:14]} 25. Rae1 {[%clk 0:00:16]}  Ne4 {[%clk 0:00:48]} 26. Bxe4 {[%clk 0:00:14]}  dxe4 {[%clk 0:00:48]} 27. Nxe4 {[%clk 0:00:13]}  Bxh3 {[%clk 0:00:33]} 28. gxh3 {[%clk 0:00:11]}  Qxh3 {[%clk 0:00:31]} 29. Qd5+ {[%clk 0:00:07]}  Kh8 {[%clk 0:00:18]} 30. Ng3 {[%clk 0:00:07]}  Rd8 {[%clk 0:00:09]} 31. Bxg7+ {[%clk 0:00:07]}  Kxg7 {[%clk 0:00:08]} 32. Re7+ {[%clk 0:00:07]}  Kg6 {[%clk 0:00:04]} 33. R1e6+ {[%clk 0:00:05]}  Rf6 {[%clk 0:00:03]} 34. Qe4+ {[%clk 0:00:05]}  Kg5 {[%clk 0:00:03]} 35. Rg7+ {[%clk 0:00:05]} 1-0


[Site "https://www.chess.com"]

[Event "Titled Tuesday Blitz June 8 2021"]
[White "Bendayan Claros, Aaron"]
[Black "Willow, Jonah B"]
[WhiteFideId "3803392"]
[BlackFideId "438804"]
[WhiteElo "2431"]
[BlackElo "2742"]
[Result "0-1"]
[Round "07"]
[TimeControl "180+1"]
[Date "2021.06.08"]
[WhiteClock "0:00:05"]
[BlackClock "0:00:25"]

1. d4 {[%clk 0:03:00]}  Nf6 {[%clk 0:02:58]} 2. Bg5 {[%clk 0:03:01]}  e6 {[%clk 0:02:58]} 3. e4 {[%clk 0:03:00]}  h6 {[%clk 0:02:58]} 4. Bxf6 {[%clk 0:03:01]}  Qxf6 {[%clk 0:02:59]} 5. c3 {[%clk 0:03:01]}  e5 {[%clk 0:02:58]} 6. Nf3 {[%clk 0:02:50]}  d6 {[%clk 0:02:51]} 7. h3 {[%clk 0:02:47]}  g6 {[%clk 0:02:48]} 8. Nbd2 {[%clk 0:02:47]}  Bg7 {[%clk 0:02:46]} 9. Bc4 {[%clk 0:02:39]}  O-O {[%clk 0:02:45]} 10. dxe5 {[%clk 0:02:35]}  dxe5 {[%clk 0:02:44]} 11. O-O {[%clk 0:02:35]}  Nc6 {[%clk 0:02:34]} 12. Qe2 {[%clk 0:02:34]}  g5 {[%clk 0:02:32]} 13. Nh2 {[%clk 0:02:27]}  Ne7 {[%clk 0:02:32]} 14. Ng4 {[%clk 0:02:19]}  Qb6 {[%clk 0:02:28]} 15. Bb3 {[%clk 0:02:15]}  Ng6 {[%clk 0:02:27]} 16. Nc4 {[%clk 0:02:13]}  Qc5 {[%clk 0:02:22]} 17. Kh2 {[%clk 0:02:01]}  h5 {[%clk 0:02:08]} 18. Nge3 {[%clk 0:01:40]}  Nf4 {[%clk 0:02:08]} 19. Qf3 {[%clk 0:01:05]}  Be6 {[%clk 0:01:39]} 20. Rad1 {[%clk 0:00:35]}  Rad8 {[%clk 0:01:33]} 21. Nd2 {[%clk 0:00:30]}  Rd3 {[%clk 0:01:28]} 22. Bc2 {[%clk 0:00:27]}  Rd7 {[%clk 0:01:21]} 23. Nf5 {[%clk 0:00:26]}  Bxf5 {[%clk 0:01:16]} 24. exf5 {[%clk 0:00:26]}  Rfd8 {[%clk 0:00:59]} 25. Ne4 {[%clk 0:00:25]}  Qe7 {[%clk 0:00:58]} 26. g3 {[%clk 0:00:19]}  Rxd1 {[%clk 0:00:53]} 27. Rxd1 {[%clk 0:00:19]}  Rxd1 {[%clk 0:00:53]} 28. Qxd1 {[%clk 0:00:18]}  g4 {[%clk 0:00:40]} 29. gxf4 {[%clk 0:00:18]}  Qh4 {[%clk 0:00:38]} 30. Qf1 {[%clk 0:00:15]}  exf4 {[%clk 0:00:36]} 31. f6 {[%clk 0:00:12]}  Bh6 {[%clk 0:00:33]} 32. Qd3 {[%clk 0:00:11]}  f3 {[%clk 0:00:29]} 33. Ng5 {[%clk 0:00:07]}  Qxf2+ {[%clk 0:00:25]} 34. Kh1 {[%clk 0:00:05]}  Qg2# {[%clk 0:00:25]} 0-1


[Site "https://www.chess.com"]

[Event "Titled Tuesday Blitz June 8 2021"]
[White "Borsuk, Konstantin"]
[Black "Sirosh, Ilja"]
[WhiteFideId "14113406"]
[BlackFideId "4500458"]
[WhiteElo "2363"]
[BlackElo "2241"]
[Result "0-1"]
[Round "07"]
[TimeControl "180+1"]
[Date "2021.06.08"]
[WhiteClock "0:01:02"]
[BlackClock "0:00:40"]

1. d4 {[%clk 0:03:00]}  d5 {[%clk 0:02:58]} 2. c4 {[%clk 0:03:01]}  e6 {[%clk 0:02:56]} 3. Nc3 {[%clk 0:03:00]}  c5 {[%clk 0:02:55]} 4. cxd5 {[%clk 0:03:00]}  exd5 {[%clk 0:02:56]} 5. Nf3 {[%clk 0:02:59]}  Nc6 {[%clk 0:02:57]} 6. g3 {[%clk 0:03:00]}  Nf6 {[%clk 0:02:56]} 7. Bg2 {[%clk 0:02:58]}  cxd4 {[%clk 0:02:57]} 8. Nxd4 {[%clk 0:02:58]}  Bc5 {[%clk 0:02:58]} 9. Nb3 {[%clk 0:02:49]}  Bb6 {[%clk 0:02:57]} 10. Nxd5 {[%clk 0:02:43]}  Be6 {[%clk 0:02:57]} 11. Nxb6 {[%clk 0:02:41]}  Qxd1+ {[%clk 0:02:56]} 12. Kxd1 {[%clk 0:02:41]}  axb6 {[%clk 0:02:57]} 13. Nd2 {[%clk 0:02:34]}  Ke7 {[%clk 0:02:25]} 14. Bxc6 {[%clk 0:02:15]}  bxc6 {[%clk 0:02:25]} 15. b3 {[%clk 0:02:13]}  Rhd8 {[%clk 0:02:17]} 16. Ke1 {[%clk 0:02:07]}  Nd5 {[%clk 0:02:00]} 17. Bb2 {[%clk 0:02:05]}  Nb4 {[%clk 0:02:01]} 18. Kd1 {[%clk 0:01:54]}  Rxa2 {[%clk 0:01:50]} 19. Rxa2 {[%clk 0:01:54]}  Bxb3+ {[%clk 0:01:45]} 20. Ke1 {[%clk 0:01:47]}  Bxa2 {[%clk 0:01:31]} 21. Bxg7 {[%clk 0:01:42]}  c5 {[%clk 0:01:23]} 22. Bc3 {[%clk 0:01:34]}  b5 {[%clk 0:01:17]} 23. Bxb4 {[%clk 0:01:23]}  cxb4 {[%clk 0:01:17]} 24. Kd1 {[%clk 0:01:24]}  b3 {[%clk 0:01:15]} 25. Kc1 {[%clk 0:01:15]}  b2+ {[%clk 0:01:16]} 26. Kc2 {[%clk 0:01:15]}  Rxd2+ {[%clk 0:01:15]} 27. Kxd2 {[%clk 0:01:14]}  b1=Q {[%clk 0:01:15]} 28. Rxb1 {[%clk 0:01:14]}  Bxb1 {[%clk 0:01:16]} 29. Kc3 {[%clk 0:01:14]}  Ba2 {[%clk 0:01:14]} 30. Kd4 {[%clk 0:01:09]}  b4 {[%clk 0:01:06]} 31. e4 {[%clk 0:01:09]}  Be6 {[%clk 0:01:04]} 32. f4 {[%clk 0:01:08]}  b3 {[%clk 0:01:04]} 33. Kc3 {[%clk 0:01:08]}  Bc4 {[%clk 0:01:04]} 34. g4 {[%clk 0:01:05]}  Ke6 {[%clk 0:00:51]} 35. h4 {[%clk 0:01:03]}  Be2 {[%clk 0:00:49]} 36. g5 {[%clk 0:01:02]}  Bf3 {[%clk 0:00:40]} 0-1


[Site "https://www.chess.com"]